bitfinex-derivatives/quotes_SOLF0:USTF0_20260310
["timestamp","ask_amount","ask_price","bid_price","bid_amount"]
[1773162547878,6.16416304,88.615,88.571,10.159]
[1773162549078,10.154,88.614,88.564,10.16]
[1773162549285,6.16410907,88.613,88.564,10.16]
[1773162550388,6.17053258,88.608,88.564,10.16]
[1773162550786,6.17053258,88.608,88.525,20.33]
[1773162552491,6.17053258,88.608,88.562,10.16]
[1773162552984,6.17021471,88.606,88.562,10.16]
[1773162553485,6.17021471,88.604,88.525,20.33]
[1773162554488,6.17021471,88.604,88.56,10.16]
[1773162554991,6.16962964,88.596,88.553,10.161]
[1773162555588,3.26156353,88.61,88.56,3.26156353]
[1773162555790,6.16962964,88.609,88.55,3.26156353]
[1773162556185,3.26156353,88.6,88.55,3.26156353]
[1773162557193,3.26156353,88.6,88.566,10.16]
[1773162557986,3.26156353,88.6,88.559,10.161]
[1773162558197,9.42911124,88.6,88.559,10.161]
[1773162558794,9.42911124,88.6,88.565,10.16]
[1773162559296,20.3,88.655,88.521,20.33]
[1773162559297,6.16754733,88.589,88.53,3.26156353]
[1773162559498,6.16754733,88.579,88.52,3.26156353]
[1773162559998,3.26156353,88.59,88.54,3.26156353]
[1773162560200,3.26156353,88.59,88.53,3.26156353]
[1773162560497,6.16771058,88.569,88.52,3.26156353]
[1773162560703,3.26156353,88.58,88.53,3.26156353]
[1773162560898,9.42927375,88.58,88.53,3.26156353]
[1773162561099,6.16771022,88.569,88.51,3.26156353]
[1773162561297,6.16771022,88.549,88.505,13.93925838]
[1773162561602,6.16771022,88.549,88.515,10.166]
[1773162562499,3.26156353,88.54,88.49,3.26156353]
[1773162562702,6.15067402,88.539,88.481,13.93925838]
[1773162562903,6.15067402,88.539,88.49,3.26156353]
[1773162563197,6.15067378,88.529,88.48,13.93925838]
[1773162563402,6.15067378,88.529,88.48,3.26156353]
[1773162563600,3.26156353,88.54,88.501,10.167]
[1773162564002,9.4158294,88.54,88.501,10.167]
[1773162564397,6.15426587,88.54,88.508,10.166]
[1773162565403,6.15426561,88.539,88.5,10.167]
[1773162566694,3.26156353,88.53,88.47,3.26156353]
[1773162566894,9.4230268,88.53,88.47,3.26156353]
[1773162567296,9.4230268,88.53,88.459,13.93925838]
[1773162567297,3.26156353,88.54,88.498,10.168]
[1773162568700,9.41629672,88.54,88.498,10.168]
[1773162569207,9.41629672,88.54,88.505,10.167]
[1773162572503,3.26156353,88.55,88.511,10.166]
[1773162572806,6.13763667,88.569,88.51,3.26156353]
[1773162573005,3.26156353,88.59,88.54,3.26156353]
[1773162573405,3.26156353,88.59,88.547,10.162]
[1773162573600,6.13763667,88.579,88.52,3.26156353]
[1773162574408,6.13763667,88.579,88.538,10.163]
[1773162579212,6.13763667,88.579,88.544,10.162]
[1773162579414,3.26156353,88.59,88.54,3.26156353]
[1773162579615,6.11764868,88.593,88.54,3.26156353]
[1773162580318,3.26156353,88.59,88.53,3.26156353]
[1773162580716,6.11764868,88.593,88.54,3.26156353]
[1773162581111,6.1220723,88.644,88.55,3.26156353]
[1773162581310,3.26156353,88.61,88.56,3.26156353]
[1773162581710,3.26156353,88.61,88.55,3.26156353]
[1773162582319,3.26156353,88.61,88.496,158.174]
[1773162582320,6.11504464,88.599,88.54,3.26156353]
[1773162583317,6.11504464,88.599,88.555,10.161]
[1773162583718,6.11504464,88.599,88.55,3.26156353]
[1773162585021,6.11812651,88.589,88.51,13.93925838]
[1773162585218,6.11812651,88.589,88.54,3.26156353]
[1773162586421,6.11812651,88.589,88.55,10.162]
[1773162588225,6.11812651,88.589,88.563,10.16]
[1773162588424,6.1246199,88.604,88.563,10.16]
[1773162590636,6.12809108,88.599,88.554,10.161]
[1773162590933,9.38965454,88.58,88.53,3.26156353]
[1773162592433,6.13579593,88.579,88.535,10.163]
[1773162593434,3.26156353,88.57,88.528,10.164]
[1773162593626,3.26156353,88.57,88.52,3.26156353]
[1773162593627,6.13579583,88.569,88.52,3.26156353]
[1773162595134,6.13579583,88.569,88.534,10.164]
[1773162598038,6.13579583,88.569,88.526,10.164]
[1773162599348,6.13579583,88.569,88.532,10.164]
[1773162600136,6.13579583,88.569,88.524,10.165]
[1773162600337,6.13579583,88.569,88.51,13.69676931]
[1773162600539,3.26156353,88.57,88.491,20.338]
[1773162600540,6.1262033,88.559,88.501,10.43520578]
[1773162600732,6.1262033,88.559,88.51,3.26156353]
[1773162600936,6.12620325,88.569,88.51,3.26156353]
[1773162601137,6.12620325,88.569,88.52,3.26156353]
[1773162601338,3.26156353,88.58,88.53,3.26156353]
[1773162601541,10.41348155,88.623,88.513,10.43520578]
[1773162601542,6.12620325,88.599,88.54,3.26156353]
[1773162601737,6.12620325,88.599,88.55,3.26163147]
[1773162602132,6.12620325,88.599,88.563,10.16]
[1773162604743,6.12620325,88.599,88.55,3.26163147]
[1773162604744,6.12620325,88.599,88.556,10.161]
[1773162605143,6.12620325,88.599,88.55,3.26163147]
[1773162605645,6.12620325,88.599,88.568,10.16]
[1773162605847,6.12620325,88.599,88.55,3.26163147]
[1773162606637,6.12620325,88.599,88.553,10.161]
[1773162607550,6.12620325,88.599,88.55,3.26163147]
[1773162608041,6.12620325,88.599,88.569,10.159]
[1773162608738,6.12620325,88.599,88.562,10.16]
[1773162611545,6.12620325,88.599,88.568,10.16]
[1773162611941,6.12620325,88.599,88.55,3.26163147]
[1773162613343,6.12620325,88.599,88.566,10.16]
[1773162613939,6.12620325,88.599,88.558,10.161]
[1773162614840,6.10311833,88.589,88.53,13.69683725]
[1773162615041,6.10311837,88.579,88.53,3.26163147]
[1773162615244,6.10311837,88.579,88.531,10.43520578]
[1773162615440,6.10311837,88.579,88.536,10.163]
[1773162615742,6.10311837,88.579,88.506,20.56819194]
[1773162615743,3.64985428,88.549,88.496,3.65765582]
[1773162615946,3.64985428,88.549,88.501,3.65765582]
[1773162616442,3.64985428,88.583,88.501,3.65765582]
[1773162616745,3.26163147,88.56,88.516,3.65765582]
[1773162617538,3.26163147,88.55,88.516,3.65765582]
[1773162617746,3.64985428,88.559,88.516,3.65765582]
[1773162618246,3.64985428,88.559,88.51,10.166]
[1773162618439,3.26163147,88.54,88.502,3.65765582]
[1773162619845,3.26163147,88.53,88.495,10.168]
[1773162620043,3.73937859,88.539,88.485,3.65858004]
[1773162620751,3.73937859,88.539,88.494,10.168]
[1773162623650,3.73937859,88.539,88.5,10.167]
[1773162623851,3.26163147,88.55,88.491,3.65858004]
[1773162624247,3.73937859,88.549,88.491,3.65858004]
[1773162624454,3.26163147,88.54,88.491,3.65858004]
[1773162625349,3.26163147,88.54,88.502,10.167]
[1773162630452,3.73937859,88.563,88.508,3.65858004]
[1773162630648,3.73937859,88.589,88.531,3.65858004]
[1773162631648,3.73937859,88.589,88.55,10.162]
[1773162631851,3.73937859,88.589,88.513,13.99445455]
[1773162631852,3.26163147,88.6,88.551,3.65858004]
[1773162632052,7.00101006,88.6,88.551,3.65858004]
[1773162632856,3.26163147,88.61,88.561,3.65858004]
[1773162633254,3.26163147,88.61,88.571,10.159]
[1773162633454,3.73937859,88.615,88.571,10.159]
[1773162633660,3.73937859,88.609,88.55,3.26163147]
[1773162634358,3.73937859,88.589,88.546,10.162]
[1773162638166,7.00101006,88.6,88.56,10.161]
[1773162638364,3.73937859,88.6,88.56,10.161]
[1773162641563,3.73937859,88.6,88.552,10.161]
[1773162642166,3.73937859,88.599,88.552,10.161]
[1773162643571,3.26163147,88.61,88.56,6.92021151]
[1773162643766,3.26163147,88.61,88.56,3.26163147]
[1773162643973,3.26163147,88.61,88.561,3.65858004]
[1773162644171,3.73937859,88.609,88.561,3.65858004]
[1773162644371,3.73937859,88.609,88.563,10.16]
[1773162645167,3.73937859,88.606,88.554,10.161]
[1773162645367,3.73937859,88.599,88.547,3.65858004]
[1773162645763,3.73937859,88.599,88.554,10.161]
[1773162648274,7.15817265,88.59,88.547,3.65858004]
[1773162648878,3.89654118,88.59,88.547,3.65858004]
[1773162649078,3.26163147,88.6,88.55,3.7994917]
[1773162649778,3.71333725,88.599,88.555,10.161]
[1773162649976,3.26163147,88.59,88.541,3.76368448]
[1773162651182,3.26163147,88.59,88.554,10.161]
[1773162651475,3.71333725,88.599,88.541,3.76368448]
[1773162652382,3.71333725,88.599,88.561,10.16]
[1773162652769,3.71333725,88.599,88.556,3.76368448]
[1773162654580,3.71333725,88.599,88.567,10.16]
[1773162655376,3.71333725,88.599,88.509,20.56819194]
[1773162655377,3.71333725,88.636,88.572,3.76368448]
[1773162655681,3.71333725,88.636,88.518,13.99445455]
[1773162655682,3.71333725,88.636,88.581,3.76368448]
[1773162656081,3.26163147,88.62,88.581,3.76368448]
[1773162656381,3.71333725,88.629,88.581,3.76368448]
[1773162657084,3.71333725,88.628,88.581,3.76368448]
[1773162658381,3.71333725,88.626,88.582,10.158]
[1773162661786,3.71333725,88.626,88.588,10.157]
[1773162662173,3.26163147,88.64,88.589,3.76368448]
[1773162662378,3.71333725,88.657,88.612,10.155]
[1773162662686,3.26163147,88.65,88.612,10.155]
[1773162662984,3.71333725,88.639,88.592,3.76368448]
[1773162664182,3.25917496,88.63,88.592,3.76368448]
[1773162664382,3.25917496,88.63,88.593,10.157]
[1773162664584,3.71333725,88.629,88.58,3.25917496]
[1773162664785,3.25917496,88.62,88.579,3.76368448]
[1773162666378,3.71333725,88.629,88.58,3.25917496]
[1773162666584,3.71333725,88.629,88.58,3.76368448]
[1773162667487,3.71333725,88.629,88.587,10.157]
[1773162668492,3.25917496,88.62,88.58,13.92168448]
[1773162668991,3.71333725,88.629,88.58,3.76368448]
[1773162670390,3.71333725,88.629,88.586,10.158]
[1773162671490,3.71333725,88.629,88.58,3.76368448]
[1773162672593,3.71333725,88.629,88.587,10.157]
[1773162672997,3.25917496,88.64,88.595,3.76368448]
[1773162673195,3.71333725,88.642,88.601,3.76368448]
[1773162673392,3.71333725,88.659,88.601,3.76368448]
[1773162674193,10.149,88.658,88.611,13.91868448]
[1773162674495,3.71333725,88.639,88.593,3.76368448]
[1773162674690,3.71333725,88.629,88.552,20.56819194]
[1773162674886,10.51456443,88.611,88.501,3.76368448]
[1773162675085,3.25917496,88.54,88.501,3.76368448]
[1773162675290,157.915,88.642,88.501,3.76368448]
[1773162675291,3.25917496,88.55,88.501,3.76368448]
[1773162676191,13.41817496,88.57,88.511,9.29370685]
[1773162676492,13.41817496,88.57,88.434,33.81]
[1773162676493,3.25917496,88.57,88.521,9.29370685]
[1773162679199,3.25917496,88.58,88.521,9.29370685]
[1773162679594,3.25917496,88.57,88.521,9.29370685]
[1773162679999,20.313,88.598,88.5,9.16234899]
[1773162680200,3.25917496,88.55,88.5,9.16234899]
[1773162682300,10.161,88.56,88.5,9.16234899]
[1773162682599,3.25917496,88.55,88.5,9.16234899]
[1773162683000,10.51456443,88.613,88.505,9.13197519]
[1773162683193,3.25917496,88.56,88.505,9.13197519]
[1773162683599,8.74546143,88.58,88.505,9.13197519]
[1773162684505,10.16,88.57,88.506,9.10670548]
[1773162685605,8.74546143,88.54,88.47,9.10670591]
[1773162686303,10.165,88.526,88.47,9.10670591]
[1773162688906,10.164,88.534,88.473,9.11995858]
[1773162690409,10.164,88.534,88.475,9.12961217]
[1773162691008,10.164,88.534,88.477,9.12961253]
[1773162693008,10.164,88.527,88.477,9.12961253]
[1773162694503,8.74546143,88.56,88.472,9.13307208]
[1773162694908,10.51456443,88.601,88.472,9.13307208]
[1773162695210,8.74546143,88.56,88.472,9.13307208]
[1773162695511,10.162,88.545,88.493,9.13307242]
[1773162696410,10.162,88.545,88.496,9.13739031]
[1773162697306,10.161,88.553,88.499,9.13739064]
[1773162698407,10.161,88.553,88.503,9.13831828]
[1773162699613,10.162,88.546,88.503,9.13831828]
[1773162699809,8.74546143,88.56,88.461,9.1383186]
[1773162700404,10.164,88.532,88.485,10.169]
[1773162700605,8.74546143,88.56,88.485,10.169]
[1773162700909,10.161,88.556,88.503,9.13831474]
[1773162701109,8.74546143,88.57,88.471,9.13831474]
[1773162702313,10.163,88.543,88.486,10.169]
[1773162702513,10.163,88.543,88.487,9.14331866]
[1773162703413,10.163,88.543,88.489,9.14331896]
[1773162704119,10.163,88.543,88.491,9.14859916]
[1773162705219,10.163,88.536,88.491,9.14859916]
[1773162705414,8.74546143,88.55,88.491,9.14859916]
[1773162705621,3.26736712,88.52,88.471,9.14859945]
[1773162705918,3.26736712,88.52,88.473,9.14859945]
[1773162706110,3.26736712,88.53,88.473,9.14859945]
[1773162706310,10.164,88.529,88.476,9.19419384]
[1773162707317,10.164,88.529,88.477,10.17]
[1773162707621,3.26736712,88.5,88.462,9.19419407]
[1773162708021,3.26736712,88.51,88.462,9.19419407]
[1773162708622,3.26736712,88.5,88.462,9.19419407]
[1773162709621,10.167,88.508,88.462,9.19419407]
[1773162710216,3.26736712,88.51,88.463,9.19066837]
[1773162710721,3.26736712,88.5,88.463,9.19066837]
[1773162711121,3.26736712,88.51,88.463,9.19066837]
[1773162711524,3.26736712,88.5,88.463,9.19066837]
[1773162712224,3.26736712,88.51,88.463,9.19066837]
[1773162713322,10.51456443,88.569,88.466,9.19135776]
[1773162713622,3.26736712,88.53,88.471,9.19135776]
[1773162714122,3.26736712,88.5,88.454,9.19261939]
[1773162714326,3.26736712,88.51,88.454,9.19261939]
[1773162715221,3.26736712,88.52,88.474,9.1926196]
[1773162716327,3.26736712,88.52,88.476,10.17]
[1773162718427,3.26736712,88.52,88.474,9.1926196]
[1773162718428,10.165,88.519,88.474,9.1926196]
[1773162718627,3.26736712,88.51,88.474,9.1926196]
[1773162718932,3.26736712,88.53,88.475,9.19867497]
[1773162719226,3.26736712,88.54,88.481,9.19867497]
[1773162719529,13.42936712,88.55,88.498,9.19867497]
[1773162720123,3.26736712,88.54,88.498,9.19867497]
[1773162720526,3.26736712,88.54,88.448,13.87457287]
[1773162720527,3.26736712,88.52,88.469,9.19231528]
[1773162720726,3.26736712,88.51,88.469,9.19231528]
[1773162721832,3.26736712,88.52,88.482,10.169]
[1773162722132,3.26736712,88.52,88.46,3.26736712]
[1773162722133,3.26736712,88.52,88.483,9.19759812]
[1773162723335,3.26736712,88.54,88.492,9.1975983]
[1773162723531,3.26636583,88.54,88.492,9.1975983]
[1773162723736,3.26636583,88.53,88.492,9.1975983]
[1773162724837,10.51456443,88.558,88.474,9.17453925]
[1773162724838,3.26636583,88.52,88.474,9.17453925]
[1773162726231,3.26636583,88.52,88.434,20.35]
[1773162726232,3.26636583,88.52,88.484,9.17498824]
[1773162726535,3.26636583,88.52,88.461,9.17498824]
[1773162726936,3.26636583,88.52,88.478,10.17]
[1773162727136,3.26636583,88.51,88.478,10.17]
[1773162728639,3.26636583,88.51,88.471,19.3620185]
[1773162729135,3.26636583,88.54,88.494,10.168]
[1773162729334,3.26636583,88.54,88.495,9.19101868]
[1773162729535,3.26636583,88.54,88.437,20.8544149]
[1773162729536,3.26636583,88.51,88.449,9.19101868]
[1773162729732,3.26636583,88.48,88.421,9.19101868]
[1773162730234,3.26636583,88.48,88.439,19.36513979]
[1773162730435,3.26636583,88.48,88.439,9.19113979]
[1773162730837,3.26636583,88.48,88.454,10.173]
[1773162731133,3.26636583,88.49,88.454,10.173]
[1773162731529,3.26636583,88.49,88.439,9.19113979]
[1773162731734,3.26636583,88.48,88.439,9.19113979]
[1773162732435,3.26636583,88.48,88.441,10.174]
[1773162732641,3.26636583,88.48,88.442,9.17361504]
[1773162733734,3.26636583,88.47,88.442,9.17361504]
[1773162734335,3.26636583,88.47,88.421,9.17852855]
[1773162734641,3.26636583,88.46,88.421,9.17852855]
[1773162734842,3.26636583,88.47,88.421,9.17852855]
[1773162736040,3.26636583,88.46,88.421,9.17852855]
[1773162736340,3.26636583,88.46,88.428,10.176]
[1773162736733,3.26636583,88.48,88.429,9.22395076]
[1773162736939,3.26636583,88.47,88.43,10.175]
[1773162737134,3.26636583,88.47,88.43,19.39895089]
[1773162737337,3.26636583,88.47,88.431,9.22395089]
[1773162737743,3.26636583,88.46,88.431,9.22395089]
[1773162738244,3.26636583,88.47,88.431,9.22395089]
[1773162738541,3.26636583,88.46,88.431,9.22395089]
[1773162738934,3.26636583,88.47,88.433,9.22382132]
[1773162740440,3.26636583,88.47,88.435,9.23640519]
[1773162740742,3.26636583,88.48,88.435,9.23640519]
[1773162740940,3.26636583,88.48,88.444,10.174]
[1773162741338,3.26636583,88.47,88.435,9.23640519]
[1773162743536,34.19716052,88.527,88.435,9.23640519]
[1773162743537,3.26636583,88.46,88.435,9.23640519]
[1773162743744,3.26636583,88.47,88.435,9.23640519]
[1773162751643,10.169,88.483,88.435,9.23640519]
[1773162751841,3.26636583,88.47,88.435,9.23640519]
[1773162753154,3.26636583,88.47,88.436,10.175]
[1773162753347,10.169,88.49,88.437,9.23607682]
[1773162753546,3.26636583,88.49,88.437,9.23607682]
[1773162753747,3.26636583,88.49,88.453,9.23607682]
[1773162753948,3.26636583,88.5,88.453,9.23607682]
[1773162754652,3.26636583,88.49,88.453,9.23607682]
[1773162754951,3.26636583,88.49,88.462,19.40780912]
[1773162755154,3.26636583,88.5,88.462,19.40780912]
[1773162755454,3.26636583,88.49,88.463,9.23580912]
[1773162755754,11.29,88.573,88.463,9.23580912]
[1773162755755,3.26636583,88.5,88.463,9.23580912]
[1773162756355,3.26636583,88.5,88.464,10.172]
[1773162756552,3.26636583,88.5,88.465,9.25073554]
[1773162756955,3.26636583,88.5,88.441,9.25073554]
[1773162757152,3.26636583,88.49,88.441,9.25073554]
[1773162758353,3.26636583,88.49,88.447,9.23339347]
[1773162759459,3.26636583,88.49,88.448,10.173]
[1773162759657,3.26636583,88.49,88.448,19.40639356]
[1773162760457,3.26636583,88.49,88.452,10.173]
[1773162762750,3.26636583,88.48,88.43,9.18097012]
[1773162763466,10.17,88.479,88.432,9.18097024]
[1773162763667,3.26636583,88.48,88.432,9.18097024]
[1773162765056,3.26636583,88.48,88.435,9.17630182]
[1773162765260,3.26636583,88.47,88.435,9.17630182]
[1773162766061,3.26636583,88.46,88.428,9.15775842]
[1773162766261,3.26636583,88.44,88.391,9.15775842]
[1773162766461,10.51456443,88.478,88.375,9.15775842]
[1773162766663,3.26636583,88.44,88.391,9.15775842]
[1773162767564,3.26636583,88.45,88.4,9.15785069]
[1773162767960,10.51456443,88.477,88.4,9.15785069]
[1773162768165,3.26636583,88.48,88.43,9.16057227]
[1773162768367,3.26636583,88.48,88.37,20.97967016]
[1773162768368,3.26636583,88.5,88.45,3.26636583]
[1773162768569,3.26636583,88.5,88.451,9.16057227]
[1773162769361,3.26636583,88.48,88.431,9.16057239]
[1773162769559,3.26636583,88.5,88.45,3.26636583]
[1773162769768,3.26636583,88.5,88.441,9.16057239]
[1773162769970,3.26636583,88.51,88.451,9.20804154]
[1773162770463,3.26636583,88.5,88.451,9.20804154]
[1773162771167,3.26636583,88.49,88.451,9.20804154]
[1773162772562,10.168,88.498,88.451,9.20804154]
[1773162772759,10.167,88.506,88.451,9.20804154]
[1773162773372,3.26636583,88.51,88.462,9.19271103]
[1773162773976,3.26636583,88.49,88.446,9.19271103]
[1773162774777,3.26636583,88.49,88.43,3.26636583]
[1773162775067,3.26636583,88.47,88.411,9.18287762]
[1773162775471,3.26636583,88.47,88.421,9.18287762]
[1773162776370,3.26636583,88.47,88.422,10.176]
[1773162776568,3.26636583,88.47,88.423,9.18232633]
[1773162776771,3.26636583,88.46,88.423,9.18232633]
[1773162776969,3.26636583,88.47,88.423,9.18232633]
[1773162778170,3.26636583,88.47,88.424,10.176]
[1773162778474,10.17,88.479,88.423,9.18232633]
[1773162778674,3.26636583,88.47,88.423,9.18232633]
[1773162779075,10.171,88.468,88.423,9.18232633]
[1773162779274,3.26636583,88.46,88.423,9.18232633]
[1773162779474,3.26636583,88.46,88.401,9.20111005]
[1773162779669,10.53987753,88.484,88.401,9.20111005]
[1773162779866,10.53987753,88.482,88.401,9.20111005]
[1773162780068,3.26636583,88.45,88.401,9.20111005]
[1773162780471,3.26636583,88.44,88.406,9.22705264]
[1773162780671,3.26636583,88.43,88.381,9.22705264]
[1773162780876,13.86816052,88.481,88.381,9.22705264]
[1773162780877,3.26636583,88.44,88.381,9.22705264]
[1773162782375,3.26636583,88.44,88.394,9.22436814]
[1773162783084,3.26636583,88.44,88.397,9.22436821]
[1773162783282,3.26636583,88.45,88.397,9.22436821]
[1773162783577,3.27303998,88.45,88.405,9.22436821]
[1773162784480,3.27303998,88.46,88.405,9.22436821]
[1773162785584,3.27303998,88.46,88.416,9.24701887]
[1773162785974,3.27303998,88.45,88.416,9.24701887]
[1773162786878,3.27303998,88.44,88.399,9.28309028]
[1773162787079,3.27303998,88.43,88.381,9.28309028]
[1773162787787,3.27303998,88.42,88.381,9.28309028]
[1773162788380,3.27303998,88.44,88.382,9.29045243]
[1773162788579,3.27303998,88.43,88.382,9.29045243]
[1773162789384,3.27303998,88.43,88.37,3.27303998]
[1773162789385,3.27303998,88.43,88.386,9.29045248]
[1773162789584,3.27303998,88.42,88.386,9.29045248]
[1773162789884,3.27303998,88.41,88.371,9.29045248]
[1773162790080,20.34,88.48,88.371,9.29045248]
[1773162790081,3.27303998,88.42,88.371,9.29045248]
[1773162791182,3.27303998,88.41,88.372,9.33274635]
[1773162792879,10.178,88.409,88.372,9.33274635]
[1773162793077,3.27303998,88.4,88.372,9.33274635]
[1773162794189,3.27303998,88.41,88.372,9.33274635]
[1773162795990,3.27303998,88.4,88.372,9.33274635]
[1773162796187,3.27303998,88.4,88.297,178.0]
[1773162796188,3.27303998,88.4,88.341,9.33691763]
[1773162796489,3.27303998,88.39,88.341,9.33691763]
[1773162796690,3.27303998,88.4,88.353,9.33691763]
[1773162798391,3.27303998,88.4,88.364,9.33807731]
[1773162798595,3.27303998,88.41,88.364,9.33807731]
[1773162799091,3.27303998,88.41,88.351,9.33807733]
[1773162799287,3.27303998,88.42,88.361,9.33807733]
[1773162799484,3.27303998,88.42,88.385,9.33807733]
[1773162803687,3.27303998,88.4,88.355,9.35582034]
[1773162803882,3.27303998,88.39,88.355,9.35582034]
[1773162804585,10.53987753,88.447,88.355,9.35582034]
[1773162804586,10.18,88.395,88.355,9.35582034]
[1773162804782,3.27303998,88.39,88.355,9.35582034]
[1773162805893,3.27303998,88.39,88.356,10.184]
[1773162806092,3.27303998,88.39,88.357,9.38624864]
[1773162808483,3.27303998,88.38,88.342,9.39050092]
[1773162808687,3.27303998,88.39,88.342,9.39050092]
[1773162808886,3.27303998,88.41,88.361,9.39050092]
[1773162809085,3.27303998,88.41,88.36,3.27303998]
[1773162809086,3.27303998,88.41,88.365,9.39050092]
[1773162809497,10.178,88.409,88.365,9.39050092]
[1773162809688,3.27303998,88.4,88.365,9.39050092]
[1773162810695,10.179,88.399,88.365,9.39050092]
[1773162812592,10.179,88.399,88.3,22.34992716]
[1773162812593,3.27303998,88.39,88.351,9.40382989]
[1773162817197,3.27303998,88.38,88.335,9.40016179]
[1773162817892,3.27303998,88.39,88.351,9.39664586]
[1773162818091,3.27303998,88.4,88.351,9.39664586]
[1773162818699,3.27303998,88.4,88.361,9.39664586]
[1773162819599,10.178,88.409,88.361,9.39664586]
[1773162819800,3.27303998,88.4,88.361,9.39664586]
[1773162820901,3.27303998,88.39,88.361,9.39664586]
[1773162821600,10.179,88.398,88.361,9.39664586]
[1773162824198,3.27303998,88.4,88.363,9.39328626]
[1773162825606,3.27303998,88.41,88.368,9.39328626]
[1773162826805,10.178,88.413,88.368,9.39328626]
[1773162827007,3.27303998,88.41,88.376,9.39662662]
[1773162828300,3.27303998,88.42,88.376,9.39662662]
[1773162829297,3.27303998,88.41,88.376,9.39662662]
[1773162829510,10.177,88.419,88.377,10.182]
[1773162829711,10.177,88.419,88.378,9.40178449]
[1773162830807,10.178,88.413,88.378,9.40178449]
[1773162831004,3.27303998,88.41,88.378,9.40178449]
[1773162831204,3.27303998,88.41,88.351,9.39557741]
[1773162831509,3.27303998,88.38,88.357,9.39557741]
[1773162831708,3.27303998,88.38,88.331,9.39557741]
[1773162832106,3.27303998,88.38,88.345,9.40710213]
[1773162832706,3.27303998,88.37,88.331,9.40710213]
[1773162833107,3.27303998,88.36,88.322,10.188]
[1773162833811,3.27303998,88.36,88.323,9.40710212]
[1773162834805,3.27303998,88.37,88.328,9.40393986]
[1773162835009,3.27303998,88.38,88.328,9.40393986]
[1773162835205,3.27303998,88.37,88.328,9.40393986]
[1773162835810,3.27303998,88.37,88.34,9.40393986]
[1773162836013,3.27303998,88.38,88.34,9.40393986]
[1773162837313,13.45403998,88.38,88.34,9.40393986]
[1773162838416,3.27303998,88.37,88.329,10.187]
[1773162839222,3.27303998,88.36,88.329,9.43988072]
[1773162839412,3.27303998,88.35,88.307,9.43988072]
[1773162840311,3.27303998,88.34,88.307,9.43988072]
[1773162840519,3.27303998,88.35,88.307,9.43988072]
[1773162840719,3.27303998,88.35,88.316,10.189]
[1773162841724,3.27303998,88.35,88.307,9.43988072]
[1773162842121,3.27303998,88.36,88.327,10.187]
[1773162842825,3.27303998,88.36,88.322,9.42765125]
[1773162843920,10.183,88.367,88.322,9.42765125]
[1773162844120,3.27303998,88.36,88.322,9.42765125]
[1773162845123,3.27303998,88.36,88.323,10.188]
[1773162845719,3.27954305,88.36,88.323,10.188]
[1773162846819,3.27954305,88.36,88.326,10.187]
[1773162847021,3.27954305,88.36,88.324,9.40056939]
[1773162848732,3.27954305,88.37,88.324,9.40056939]
[1773162850319,10.181,88.384,88.34,9.38308454]
[1773162850520,3.27954305,88.38,88.34,9.38308454]
[1773162851222,3.27954305,88.38,88.343,9.38308454]
[1773162852321,8.28351033,88.406,88.346,9.37740193]
[1773162852518,3.27954305,88.39,88.346,9.37740193]
[1773162852924,3.27954305,88.4,88.357,9.37740193]
[1773162853330,3.27954305,88.39,88.357,9.37740193]
[1773162853529,3.27954305,88.39,88.34,3.27954305]
[1773162853530,3.27954305,88.4,88.359,9.37740193]
[1773162854727,8.27623972,88.433,88.368,9.4065028]
[1773162854926,3.27954305,88.42,88.368,9.4065028]
[1773162856429,3.27954305,88.41,88.368,9.4065028]
[1773162857331,3.27954305,88.4,88.354,9.41011119]
[1773162858223,3.27954305,88.4,88.356,9.42210641]
[1773162859324,3.27954305,88.4,88.361,9.4221064]
[1773162859828,3.27954305,88.42,88.361,9.4221064]
[1773162860822,3.27954305,88.42,88.37,3.27954305]
[1773162861026,3.27954305,88.42,88.371,9.41924001]
[1773162861432,3.27954305,88.42,88.38,10.181]
[1773162861628,3.27954305,88.42,88.381,9.41924001]
[1773162862834,3.27954305,88.42,88.382,10.181]
[1773162864225,3.27954305,88.42,88.361,9.41652903]
[1773162864431,3.27954305,88.41,88.361,9.41652903]
[1773162864630,3.27954305,88.42,88.361,9.41652903]
[1773162864831,3.27954305,88.42,88.37,9.41652903]
[1773162865131,3.27954305,88.43,88.371,9.41652903]
[1773162865531,3.27954305,88.42,88.38,10.181]
[1773162865731,3.27954305,88.42,88.381,9.41652903]
[1773162871340,3.27954305,88.42,88.383,9.40036176]
[1773162871738,3.27954305,88.42,88.387,9.40036176]
[1773162871935,3.27954305,88.44,88.391,9.39782664]
[1773162872136,3.27954305,88.45,88.391,9.39782664]
[1773162872537,3.27954305,88.45,88.39,3.27954305]